[Event "US Masters 2022"]
[Site "Charlotte"]
[Date "2022.11.27"]
[Round "8.4"]
[White "Oparin, Grigoriy"]
[Black "Beradze, Irakli"]
[Result "1-0"]
[ECO "D46"]
[WhiteElo "2683"]
[BlackElo "2494"]
[Annotator "TA"]
[PlyCount "83"]
[EventDate "2022.11.23"]
[EventType "swiss"]
[EventCountry "USA"]
[SourceTitle "playchess.com"]
[Source "ChessBase"]
[SourceQuality "1"]
[TimeControl "5400+30"]

{[%evp 20,83,25,33,86,73,84,80,80,46,48,51,66,68,80,80,85,72,141,140,135,122,130,109,122,82,150,144,140,121,141,92,117,83,59,33,29,29,162,150,158,147,166,125,109,116,206,208,218,214,218,219,435,439,464,446,589,618,612,600,528,542,977,926,1097,1093]} 1. d4 {[%emt 0:00:02]} d5 {[%emt 0:08:35]} 2. c4 {[%emt 0:00:06]} c6 {[%emt 0:00:04]} 3. Nf3 {[%emt 0:00:09]} Nf6 {[%emt 0:00:13]} 4. Nc3 {[%emt 0:00:05]} e6 {[%emt 0:00:40]} 5. e3 {[%emt 0:00:11]} Nbd7 {[%emt 0:00:07]} 6. Bd3 {[%emt 0:00:06]} Bd6 {[%emt 0:00:04]} 7. e4 {[%emt 0:08:02]} dxe4 {[%emt 0:22:37]} 8. Nxe4 {[%emt 0:00:06]} Nxe4 {[%emt 0:00:03]} 9. Bxe4 {[%emt 0:00:06]} Bb4+ {[%emt 0:00:11]} 10. Bd2 {[%emt 0:00:23]} Bxd2+ {[%emt 0:03:23]} 11. Qxd2 {[%emt 0:00:20]} c5 {[%emt 0:00:42] D46: Semi-Slav: 5 e3 Nbd7 6 Bd3, Black avoids the Meran.} (11... O-O $14) 12. O-O-O $16 {[%emt 0:07:36]} cxd4 {[%emt 0:07:04]} 13. Qxd4 {[%emt 0:08:16]} O-O {[%emt 0:01:53] [#] White is better.} 14. h4 $146 {[%emt 0:11:23]} ({Predecessor:} 14. Kb1 Qc7 15. Bc2 Re8 16. Ba4 Re7 17. Rhe1 Nf8 18. Qd6 f6 19. c5 e5 20. Nd4 Ng6 21. Bb3+ {1-0 (35) Malaniuk,V (2513)-Krysztofiak,M (2410) Krakow 2004}) 14... Qc7 {[%emt 0:08:42]} 15. Bc2 {[%emt 0:04:15]} e5 {[%emt 0:10:24]} 16. Qc3 {[%emt 0:00:27]} Re8 {[%emt 0:05:30]} 17. Rhe1 $36 {[%emt 0:11:31][%mdl 2048] White is on the roll.} f6 {[%emt 0:00:19]} 18. Nd4 {[%emt 0:01:37][%cal Bf3d4,Bd4b5,Bb5d6][%mdl 32] Strongly threatening Nb5.} (18. Qd3 Nf8 $11) 18... Nf8 {[%emt 0:05:49]} (18... a6 $142) 19. Nb5 {[%emt 0:01:09]} Qc5 {[%emt 0:00:33]} 20. f4 {[%emt 0:08:43]} Bg4 {[%emt 0:10:37]} 21. Rd5 {[%emt 0:00:06]} Qf2 {[%emt 0:00:02]} 22. fxe5 {[%emt 0:00:28]} Rxe5 {[%emt 0:00:16]} (22... Re7 $142) 23. Rdxe5 {[%emt 0:01:18]} fxe5 {[%emt 0:00:02]} 24. Nd6 {[%emt 0:36:05]} Nd7 {[%emt 0:05:28]} 25. Be4 {[%emt 0:00:00] Against b6} ({Better is} 25. Nxb7 {aiming for c5.} Be6 26. Kb1) 25... Rf8 {[%emt 0:01:05] Inhibits c5.} 26. Bd5+ {[%emt 0:00:00]} (26. Bxb7 Be6) 26... Kh8 {[%emt 0:00:05]} 27. Qe3 {[%emt 0:00:00] Threatens to win with Qxf2. Active counter play!} (27. Qd2 $5 {[%cal Rd2f2]} Qf6 28. Bxb7 $14) 27... Qf6 {[%emt 0:03:30]} 28. c5 {[%emt 0:00:00]} (28. Ne4 $5 {[%cal Re4f6]} Qa6 29. a3 $14) 28... Be6 {[%emt 0:01:32] [#]} (28... b6 $11) 29. Ne4 $1 $18 {[%emt 0:00:00]} ({Don't do} 29. Bxb7 $6 Qxh4 30. Ne4 Bxa2 $14) 29... Qe7 {[%emt 0:00:42]} 30. Bxb7 {[%emt 0:00:00] Black must now prevent c6.} Nf6 {[%emt 0:02:16]} 31. Nxf6 {[%emt 0:00:00]} gxf6 {[%emt 0:02:14]} 32. c6 {[%emt 0:00:00]} Bd5 {[%emt 0:01:11]} (32... Rd8 $16) 33. Re2 {[%emt 0:00:00]} (33. Qxa7 $2 Bxc6 34. Qa3 Qxa3 35. bxa3 Bxb7 $19) 33... Qb4 {[%emt 0:00:27]} 34. b3 {[%emt 0:00:00] Inhibits Qc4+.} ({Weaker is} 34. Qxa7 Qc4+ 35. Kd2 Qb4+ 36. Kc1 Qc4+ 37. Kd2 Qb4+ 38. Kc1 $17) 34... Rg8 {[%emt 0:00:34]} 35. Kb2 {[%emt 0:00:00]} (35. Qxa7 Qc3+ 36. Rc2 Qa1+ 37. Kd2 Rxg2+ 38. Kd3 e4+ 39. Ke3 Qg1+ 40. Kf4 Qh2+ 41. Ke3 Rxc2) 35... Bxg2 $2 {[%emt 0:00:23]} (35... a5 36. Qc3 Qb6) 36. Qxa7 {[%emt 0:00:00] White is clearly winning.} Qxh4 {[%emt 0:00:42]} 37. Qc5 {[%emt 0:00:00]} Bh1 {[%emt 0:00:29]} 38. Ba6 {[%emt 0:00:00] c7 is the strong threat.} Bf3 {[%emt 0:00:20] [#] Against c7} 39. c7 $1 {[%emt 0:00:00] And now Rd2 would win.} Bxe2 {[%emt 0:00:39]} 40. c8=Q {[%emt 0:08:00][%mdl 64] Zwischenzug} (40. c8=R Bxa6 41. Rc7 Rg2+ 42. Ka3 Qf2 43. Qf8+ Rg8 $19) 40... Qh2 {[%emt 0:00:31]} 41. Bxe2 {[%emt 0:00:00] White wants to mate with Qa6.} Qxe2+ {[%emt 0:00:27]} 42. Qc2 {[%emt 0:00:00] Weighted Error Value: White=0.12 (very precise) /Black=0.42} 1-0

[Event "US Masters 2022"]
[Site "Charlotte"]
[Date "2022.11.27"]
[Round "8.5"]
[White "Balakrishnan, Praveen"]
[Black "Negi, Parimarjan"]
[Result "1-0"]
[ECO "C96"]
[WhiteElo "2510"]
[BlackElo "2639"]
[Annotator "TA"]
[PlyCount "55"]
[EventDate "2022.11.23"]
[EventType "swiss"]
[EventCountry "USA"]
[SourceTitle "playchess.com"]
[Source "ChessBase"]
[SourceQuality "1"]
[TimeControl "5400+30"]

{[%evp 25,55,0,0,0,-2,-23,-20,-8,-14,0,-5,-9,147,49,54,33,37,30,169,133,404,369,506,505,506,506,771,763,742,741,1227,1033]} 1. e4 {[%emt 0:10:05]} e5 {[%emt 0:07:20]} 2. Nf3 {[%emt 0:00:08]} Nc6 {[%emt 0:00:05]} 3. Bb5 {[%emt 0:00:06]} a6 {[%emt 0:00:21]} 4. Ba4 {[%emt 0:00:07]} Nf6 {[%emt 0:00:09]} 5. O-O {[%emt 0:00:18]} Be7 {[%emt 0:00:46]} 6. Re1 {[%emt 0:00:10]} b5 {[%emt 0:00:17]} 7. Bb3 {[%emt 0:00:07]} d6 {[%emt 0:00:12]} 8. c3 {[%emt 0:00:06]} O-O {[%emt 0:00:08]} 9. h3 {[%emt 0:00:06]} Na5 {[%emt 0:01:51]} 10. Bc2 {[%emt 0:00:10]} c5 {[%emt 0:00:12]} 11. d4 {[%emt 0:00:09]} Qc7 {[%emt 0:02:14]} 12. b3 {[%emt 0:14:29]} cxd4 {[%emt 0:10:19]} 13. cxd4 {[%emt 0:00:10]} Nc6 {[%emt 0:00:14]} 14. Bb2 {[%emt 0:11:26] C96: Closed Ruy Lopez: Chigorin Defence: 11 d4, replies other than 11...Qc7.} Nb4 {[%emt 0:10:41]} 15. Na3 {[%emt 0:10:51][%cal Rd4e5] [#]} Bb7 $146 {[%emt 0:13:35]} ({Predecessor:} 15... Nxc2 16. Nxc2 Bb7 17. d5 a5 18. Rc1 Qd7 19. Nd2 g6 20. Ne3 Nh5 21. Qg4 Qd8 {0-1 (47) Piculjan,N (2417)-Selyanchin,N (2479) ICCF email 2005}) 16. Bb1 {[%emt 0:13:15] The position is equal.} d5 {[%emt 0:11:44][%cal Rd5e4]} 17. dxe5 {[%emt 0:04:30]} Nxe4 {[%emt 0:00:39]} 18. Nc2 {[%emt 0:01:09]} Nc3 $2 {[%emt 0:15:07] [#]} (18... Nxc2 $11 19. Qxc2 Rfc8 20. Qxc7 Rxc7) 19. Qd4 {[%emt 0:04:31]} (19. Bxc3 $1 $16 Qxc3 20. Ncd4) 19... Nxc2 $14 {[%emt 0:00:14]} 20. Bxc2 {[%emt 0:00:09]} b4 {[%emt 0:00:07]} 21. Rac1 {[%emt 0:06:36]} Rac8 {[%emt 0:01:38]} (21... g6 $11 {and Black has nothing to worry.}) 22. Bf5 $40 {[%emt 0:02:27][%mdl 128] White is out for blood.} ({Worse is} 22. Qd3 g6 $11) 22... g6 $2 {[%emt 0:06:22][%mdl 8192] This costs Black the game.} (22... Bc5 $16 {keeps fighting.} 23. Qg4 (23. Qh4 h6 $16) 23... h6) 23. Bxc8 {[%emt 0:01:28]} Bc5 {[%emt 0:04:14] [#]} 24. Bxc3 {[%emt 0:03:52][%cal Bb2c3,Bc3d4,Bd4e5][%mdl 32] White is clearly winning.} Bxd4 {[%emt 0:02:44]} 25. Bxd4 {[%emt 0:00:13]} Qb8 {[%emt 0:00:49]} (25... Qxc1 $142 26. Rxc1 Rxc8) 26. Bxb7 {[%emt 0:04:59]} Qxb7 {[%emt 0:00:06]} 27. e6 {[%emt 0:00:06]} f5 {[%emt 0:01:02]} 28. Be5 {[%emt 0:02:07] Weighted Error Value: White=0.10 (very precise) /Black=0.68} 1-0

[Event "US Masters 2022"]
[Site "Charlotte"]
[Date "2022.11.27"]
[Round "8.6"]
[White "Hambleton, Aman"]
[Black "Arias Santana, Mauricio"]
[Result "1/2-1/2"]
[ECO "D00"]
[WhiteElo "2437"]
[BlackElo "2317"]
[Annotator "TA"]
[PlyCount "158"]
[EventDate "2022.11.23"]
[EventType "swiss"]
[EventCountry "USA"]
[SourceTitle "playchess.com"]
[Source "ChessBase"]
[SourceQuality "1"]
[TimeControl "5400+30"]

{[%evp 9,158,0,11,11,12,10,16,17,26,25,32,27,25,21,18,16,17,21,30,25,25,17,29,21,20,29,30,27,12,16,46,33,57,47,53,21,39,0,0,0,56,54,55,47,47,47,47,36,28,26,29,45,104,92,107,27,47,0,0,0,0,0,0,0,0,0,0,7,6,7,7,0,0,0,0,0,0,0,8,8,8,0,0,0,0,0,0,0,0,0,0,0,0,0,0,0,0,0,0,0,0,0,0,0,0,0,0,0,0,0,0,0,0,0,0,0,0,0,0,0,0,0,0,0,0,0,0,0,0,0,0,0,0,0,0,0,0,0,0,0,0,0,0,0,0,0,0,0,0,0,0]} 1. d4 {[%emt 0:00:04]} Nf6 {[%emt 0:04:09]} 2. Bf4 {[%emt 0:01:55]} d5 {[%emt 0:00:18]} 3. e3 {[%emt 0:00:23]} c5 {[%emt 0:00:07]} 4. c3 {[%emt 0:00:20]} Nc6 {[%emt 0:00:04]} 5. Nd2 {[%emt 0:00:25]} cxd4 {[%emt 0:00:03]} 6. exd4 {[%emt 0:00:16] D00: 1 d4 d5: Unusual lines.} Bf5 {[%emt 0:00:20] Prevents Bd3.} 7. Qb3 {[%emt 0:01:41]} Qc8 {[%emt 0:00:06]} 8. Ngf3 {[%emt 0:00:50]} e6 {[%emt 0:00:48]} 9. Nh4 {[%emt 0:06:15]} Be4 {[%emt 0:00:13]} 10. Nxe4 {[%emt 0:01:19]} Nxe4 {[%emt 0:00:04]} 11. Nf3 {[%emt 0:01:18] Against g5} Bd6 {[%emt 0:00:18]} 12. Bxd6 {[%emt 0:00:42]} Nxd6 {[%emt 0:00:03]} 13. Bd3 {[%emt 0:00:19]} Qc7 {[%emt 0:03:47]} 14. O-O {[%emt 0:01:21]} O-O {[%emt 0:03:01]} 15. a4 {[%emt 0:09:51] [#]} Rfc8 $146 {[%emt 0:04:11]} ({Predecessor:} 15... a6 16. Qc2 h6 17. Qe2 Rab8 18. b4 Rbc8 19. a5 Na7 20. Rac1 Nab5 21. Ne5 Nxd4 {0-1 (48) Gorovets,A (2493)-Wang,Y (2684) Chess.com INT 2019}) 16. Rfe1 {[%emt 0:18:10]} h6 {[%emt 0:00:37]} 17. Qd1 {[%emt 0:09:00]} a6 {[%emt 0:02:44]} 18. Qe2 {[%emt 0:03:18]} Rab8 {[%emt 0:00:31]} 19. g4 {[%emt 0:03:16][%cal Bg2g4,Bg4g5][%mdl 32]} Qe7 {[%emt 0:09:46] Prevents g5.} 20. h4 {[%emt 0:04:43]} g6 {[%emt 0:00:56]} 21. Qe3 {[%emt 0:08:50]} Kg7 {[%emt 0:00:15]} 22. Kg2 {[%emt 0:03:14]} Rd8 {[%emt 0:06:41]} 23. g5 {[%emt 0:07:14]} (23. Ne5 {seems wilder.} Qxh4 24. Rh1 Qg5 25. f4) 23... h5 $1 {[%emt 0:04:40]} 24. Ne5 {[%emt 0:01:38]} Nxe5 {[%emt 0:00:29]} (24... Rbc8 $11) 25. Qxe5+ $14 {[%emt 0:00:29]} Kg8 {[%emt 0:01:07]} 26. Qxd5 {[%emt 0:00:31]} Nf5 {[%emt 0:03:06]} 27. Qe4 {[%emt 0:00:52]} Qc7 $1 {[%emt 0:08:35] Prevents Qf4.} 28. Kh3 {[%emt 0:01:18]} b5 {[%emt 0:03:04]} 29. axb5 {[%emt 0:00:34]} axb5 {[%emt 0:00:02]} 30. Qe5 {[%emt 0:00:20]} Qc6 {[%emt 0:00:38]} ({Better is} 30... Qd7 $14) 31. Be4 $16 {[%emt 0:00:12] Active counter play!} Qd7 {[%emt 0:09:04] [#]} 32. Bxf5 {[%emt 0:11:04]} (32. d5 $1 $16 {[%cal Rd5e6]}) 32... exf5 $11 {[%emt 0:00:06]} 33. Kg3 {[%emt 0:00:06]} (33. Qe2 $14 {might be stronger.}) 33... b4 {[%emt 0:02:25] The position is equal.} 34. Rad1 {[%emt 0:01:13]} bxc3 {[%emt 0:00:14]} 35. bxc3 {[%emt 0:00:02]} Rbc8 {[%emt 0:00:25]} 36. d5 {[%emt 0:04:10]} Rc5 {[%emt 0:08:41]} 37. f3 {[%emt 0:00:20]} Rxd5 {[%emt 0:08:08]} 38. Rxd5 {[%emt 0:01:13]} Qxd5 {[%emt 0:00:03]} 39. Qxd5 {[%emt 0:00:27]} Rxd5 {[%emt 0:00:02][%mdl 4096] Endgame KR-KR} 40. Re8+ {[%emt 0:00:40]} Kg7 {[%emt 0:00:05]} 41. Rc8 {[%emt 0:00:34]} Rd2 {[%emt 0:01:14]} 42. Kf4 {[%emt 0:00:25]} Rh2 {[%emt 0:00:07]} 43. Kg3 {[%emt 0:00:12]} Rc2 {[%emt 0:00:08]} 44. c4 {[%emt 0:00:12]} Rc1 {[%emt 0:00:42]} 45. Kf4 {[%emt 0:00:11]} Rh1 {[%emt 0:00:06]} 46. Kg3 {[%emt 0:00:26]} Rg1+ {[%emt 0:00:22]} 47. Kf4 {[%emt 0:01:31]} Rh1 {[%emt 0:00:06]} 48. Kg3 {[%emt 0:00:31]} Rg1+ {[%emt 0:00:12]} 49. Kh2 {[%emt 0:00:27]} Rc1 {[%emt 0:00:05]} 50. c5 {[%emt 0:00:21]} f4 {[%emt 0:00:16]} 51. c6 {[%emt 0:00:29]} Rc2+ {[%emt 0:02:47]} 52. Kg1 {[%emt 0:00:06]} Re2 {[%emt 0:14:30]} 53. Kf1 {[%emt 0:01:00]} Re3 {[%emt 0:00:54]} 54. Kf2 {[%emt 0:00:33]} Re6 {[%emt 0:00:02]} 55. Kg2 {[%emt 0:00:32]} (55. Rc7 $5 Kf8 $8 56. Kg2 $11) 55... Re2+ {[%emt 0:00:18]} 56. Kg1 {[%emt 0:00:11]} Re3 {[%emt 0:00:09]} (56... Rc2 $2 57. c7 $18) 57. Kf2 {[%emt 0:00:45]} Re6 {[%emt 0:00:05]} 58. c7 {[%emt 0:00:34]} Rc6 {[%emt 0:00:06]} 59. Ke2 {[%emt 0:00:09]} Rc3 {[%emt 0:02:05]} 60. Kd2 {[%emt 0:00:09]} Rc4 {[%emt 0:00:23]} 61. Kd3 {[%emt 0:00:08]} Rc1 {[%emt 0:00:07]} 62. Kd4 {[%emt 0:00:08]} Rc2 {[%emt 0:01:01]} 63. Ke5 {[%emt 0:00:10]} Rc1 {[%emt 0:00:43]} 64. Kxf4 {[%emt 0:00:21]} Rc4+ {[%emt 0:00:30]} 65. Ke5 {[%emt 0:00:14]} Rc1 {[%emt 0:00:02]} 66. f4 {[%emt 0:00:11]} Re1+ {[%emt 0:00:20]} 67. Kd4 {[%emt 0:00:18]} Rc1 {[%emt 0:00:21]} 68. Ke3 {[%emt 0:00:29]} Rc6 {[%emt 0:00:25]} 69. Kd4 {[%emt 0:00:42]} Rc1 {[%emt 0:00:02]} 70. f5 {[%emt 0:00:45]} gxf5 {[%emt 0:00:05]} 71. Ke5 {[%emt 0:00:06]} Re1+ {[%emt 0:00:18]} 72. Kxf5 {[%emt 0:00:21]} (72. Kd6 $5 Rd1+ $8 73. Ke7 Re1+ 74. Kd6 Rd1+ 75. Ke5 $11) 72... Rc1 {[%emt 0:00:05]} 73. Ke5 {[%emt 0:00:31]} Re1+ {[%emt 0:00:09]} 74. Kd6 {[%emt 0:00:08] [#] Threatening mate with Ra8.} Rd1+ {[%emt 0:00:05]} 75. Ke7 {[%emt 0:00:08][%cal Oc8g8]} Re1+ {[%emt 0:00:07]} 76. Kd8 {[%emt 0:00:08] White wants to mate with Ra8.} Rd1+ {[%emt 0:00:06]} 77. Ke8 {[%emt 0:00:06] Rd8 would kill now.} Re1+ {[%emt 0:00:04]} 78. Kd8 {[%emt 0:00:06] Intending Rb8 and mate.} Rd1+ {[%emt 0:00:03]} 79. Ke8 {[%emt 0:00:06] White threatens Rb8 and mate.} Re1+ {[%emt 0:00:06] Weighted Error Value: White=0.06 (flawless) /Black=0.06 (flawless)} 1/2-1/2

[Event "US Masters 2022"]
[Site "Charlotte"]
[Date "2022.11.27"]
[Round "8.7"]
[White "Budisavljevic, Luka"]
[Black "Liang, Awonder"]
[Result "0-1"]
[ECO "D27"]
[WhiteElo "2505"]
[BlackElo "2630"]
[Annotator "TA"]
[PlyCount "116"]
[EventDate "2022.11.23"]
[EventType "swiss"]
[EventCountry "USA"]
[SourceTitle "playchess.com"]
[Source "ChessBase"]
[SourceQuality "1"]
[TimeControl "5400+30"]

{[%evp 18,116,34,14,19,26,17,14,27,15,24,6,12,6,9,0,0,0,0,-4,0,-8,-6,-19,-19,-18,-18,-20,-12,-60,-46,-44,-51,-52,-48,-64,-62,-118,-50,-59,-60,-117,-99,-97,-85,-129,-139,-139,-137,-140,-143,-172,-180,-170,-162,-138,-89,-141,-169,-510,-491,-638,-595,-912,-827,-6518,-6070,-12834,-12835,-12839,-12839,-12839,-12839,-12840,-12841,-12841,-12841,-12842,-12842,-12842,-12843,-12846,-12846,-12846,-12847,-12848,-12848,-12849,-12848,-12850,-27999,-27999,-27999,-27999,-27999,-27999,-27999,-27999,-27999,-27999,-27999]} 1. d4 {[%emt 0:03:24]} d5 {[%emt 0:00:01]} 2. c4 {[%emt 0:00:24]} dxc4 {[%emt 0:00:02]} 3. Nf3 {[%emt 0:00:21]} Nf6 {[%emt 0:00:01]} 4. e3 {[%emt 0:00:18]} e6 {[%emt 0:00:03]} 5. Bxc4 {[%emt 0:00:19]} a6 {[%emt 0:00:01]} 6. O-O {[%emt 0:00:48]} c5 {[%emt 0:00:02]} 7. dxc5 {[%emt 0:02:45]} Bxc5 {[%emt 0:00:02]} 8. Qxd8+ {[%emt 0:00:27]} Kxd8 {[%emt 0:00:02]} 9. Rd1+ {[%emt 0:00:44]} Ke7 {[%emt 0:00:27]} 10. b3 {[%emt 0:00:10]} Rd8 $5 {[%emt 0:03:52][%mdl 4] An interesting side line. D27: Queen's Gambit Accepted: Classical main line: 7 e4!? and 7 a4.} 11. Rxd8 {[%emt 0:05:05]} Kxd8 {[%emt 0:00:01]} 12. Bb2 {[%emt 0:02:16] [#]} Nbd7 $146 {[%emt 0:01:29] The position is equal.} ({Predecessor:} 12... Ke7 13. Nc3 Nbd7 14. Kf1 b5 15. Bd3 Bb7 16. Ke2 g6 17. g3 Rc8 18. Nd2 Bb4 {½-½ (50) Baenziger,F (1952)-Raetsky,A (2405) Leukerbad 2015}) 13. Nbd2 {[%emt 0:01:36]} b6 {[%emt 0:11:55]} 14. Ng5 {[%emt 0:13:15]} Ke8 {[%emt 0:00:56]} 15. Be2 {[%emt 0:02:26]} Bb7 {[%emt 0:01:36]} 16. Bf3 {[%emt 0:03:27]} Bxf3 {[%emt 0:00:40]} 17. Ngxf3 {[%emt 0:00:08]} Bf8 {[%emt 0:13:16]} 18. Kf1 {[%emt 0:08:16]} Nd5 {[%emt 0:00:49]} 19. a4 {[%emt 0:02:47]} Rc8 {[%emt 0:01:36]} 20. Rc1 {[%emt 0:01:03]} Rxc1+ {[%emt 0:00:20]} 21. Bxc1 {[%emt 0:00:02]} Bb4 {[%emt 0:04:27]} 22. Bb2 {[%emt 0:02:27]} f6 {[%emt 0:00:11]} 23. Nb1 {[%emt 0:12:19]} (23. Ne4 $11) 23... Nc5 $15 {[%emt 0:04:39]} 24. Nfd2 {[%emt 0:00:26]} e5 {[%emt 0:04:41]} 25. Ke2 {[%emt 0:00:26]} Kd7 {[%emt 0:00:14]} 26. Ba1 {[%emt 0:03:45]} Kc6 {[%emt 0:02:56] Black is much more active.} 27. Bb2 {[%emt 0:04:09]} (27. g3 $15) 27... h5 {[%emt 0:06:53]} ({Black should play} 27... Bxd2 $17 28. Nxd2 b5 29. axb5+ axb5) 28. g3 {[%emt 0:01:32]} b5 {[%emt 0:01:59]} 29. e4 {[%emt 0:04:58]} (29. axb5+ $1 $15 axb5 30. f4) 29... Nc7 {[%emt 0:00:46]} 30. axb5+ {[%emt 0:06:37]} Nxb5 {[%emt 0:00:02]} 31. Ke3 {[%emt 0:00:48] Inhibits Nd4.} Ne6 {[%emt 0:03:17]} 32. f3 {[%emt 0:01:48]} Bc5+ {[%emt 0:01:44]} 33. Ke2 {[%emt 0:00:11]} Bg1 {[%emt 0:01:11]} 34. h4 {[%emt 0:02:35]} Kc5 {[%emt 0:05:52]} 35. Nc3 {[%emt 0:07:05]} Bd4 {[%emt 0:04:16]} 36. Kd3 {[%emt 0:02:33]} g5 {[%emt 0:00:39]} (36... Bf2 $142 37. Ne2 Kb4) 37. b4+ {[%emt 0:01:15] [#]} (37. Na4+ $142 Kb4 38. Bxd4 Nbxd4 39. Nb6) 37... Kc6 $1 $17 {[%emt 0:01:21] ...gxh4 is the strong threat.} (37... Kxb4 38. Nd5+ Kc5 39. Nb3+ Kd6 40. Nxd4 Nbxd4 41. Nxf6 gxh4 42. gxh4 $15) 38. Nxb5 $2 {[%emt 0:03:40]} (38. hxg5 fxg5 39. Nd1) 38... Kxb5 $19 {[%emt 0:05:42]} (38... Bxb2 39. Nc3 $15) 39. Bxd4 {[%emt 0:00:04]} exd4 {[%emt 0:00:04]} 40. hxg5 {[%emt 0:02:04]} fxg5 {[%emt 0:00:01][%cal Oh5h4][%mdl 4096] Endgame And now ...h4! would win. KN-KN} 41. f4 {[%emt 0:00:14]} gxf4 {[%emt 0:00:11]} (41... Kxb4 42. f5 Nc5+ 43. Kxd4 $11) 42. gxf4 {[%emt 0:00:00]} Nxf4+ {[%emt 0:01:46]} ({Worse is} 42... Kxb4 43. f5 Nd8 44. e5 $11 (44. Kxd4 a5 $11)) 43. Kxd4 {[%emt 0:00:02]} h4 {[%emt 0:00:59][%cal Bh5h4,Bh4h3][%mdl 32]} 44. Kc3 {[%emt 0:01:07]} h3 {[%emt 0:00:19]} 45. Nf1 {[%emt 0:00:29]} Ng6 {[%emt 0:00:13]} 46. Nh2 {[%emt 0:02:05]} Ne5 {[%emt 0:00:06]} 47. Kb3 {[%emt 0:00:30]} Nc6 {[%emt 0:00:04]} 48. Nf3 {[%emt 0:00:45]} Nxb4 {[%emt 0:00:41]} 49. e5 {[%emt 0:00:04]} Nc6 {[%emt 0:00:18]} 50. e6 {[%emt 0:00:05]} Kc5 {[%emt 0:00:18]} 51. Kc3 {[%emt 0:01:15]} Kd6 {[%emt 0:00:10]} 52. Kb2 {[%emt 0:00:39]} Ne5 {[%emt 0:00:38]} ({Not} 52... Kxe6 53. Ng5+ Kf6 54. Nxh3 $11) 53. Nh2 {[%emt 0:00:26]} Kxe6 {[%emt 0:00:04]} 54. Kc3 {[%emt 0:00:14] Black mates.} Kf5 {[%emt 0:00:14]} 55. Kd2 {[%emt 0:00:10]} a5 {[%emt 0:00:12][%cal Ba6a5,Ba5a4,Ba4a3][%mdl 32]} 56. Ke2 {[%emt 0:00:13]} a4 {[%emt 0:00:29]} 57. Nf1 {[%emt 0:00:08]} a3 {[%emt 0:00:20]} 58. Kf2 {[%emt 0:00:09]} Ng4+ {[%emt 0:00:14] Weighted Error Value: White=0.44/Black=0.03 (flawless)} 0-1

[Event "US Masters 2022"]
[Site "Charlotte"]
[Date "2022.11.27"]
[Round "8.8"]
[White "Antipov, Mikhail Al."]
[Black "Macovei, Andrei"]
[Result "1-0"]
[ECO "B30"]
[WhiteElo "2608"]
[BlackElo "2482"]
[Annotator "TA"]
[PlyCount "71"]
[EventDate "2022.11.23"]
[EventType "swiss"]
[EventCountry "USA"]
[SourceTitle "playchess.com"]
[Source "ChessBase"]
[SourceQuality "1"]
[TimeControl "5400+30"]

{[%evp 9,71,-11,29,20,31,27,31,33,39,29,47,12,18,10,36,24,30,13,35,33,144,-33,0,0,0,0,0,0,0,0,0,0,0,0,8,0,0,0,0,13,18,-23,35,28,512,500,522,346,344,328,410,407,554,516,609,573,1086,1035,1071,1145,12835,8071,12837,6314]} 1. e4 {[%emt 0:10:01]} c5 {[%emt 0:00:54]} 2. Nf3 {[%emt 0:00:05]} Nc6 {[%emt 0:00:10]} 3. Bb5 {[%emt 0:00:03]} e5 {[%emt 0:00:40]} 4. O-O {[%emt 0:01:15]} Bd6 {[%emt 0:00:07]} 5. b4 {[%emt 0:03:36] [#]} Nf6 $146 {[%emt 0:35:27][%cal Bg8f6,Bf6e4,Be4c5][%mdl 32]} (5... Nxb4 $5 6. d3 Nf6 $11) ({Predecessor:} 5... cxb4 6. a3 bxa3 7. d4 exd4 8. c3 Nge7 9. cxd4 O-O 10. e5 Bb8 11. Bxa3 d5 {½-½ (34) Radovic,J (2430)-Miljkovic,M (2483) Subotica 2019}) 6. bxc5 {[%emt 0:06:26] B30: Sicilian: 2...Nc6 3 Bb5, lines without ...g6.} Bxc5 {[%emt 0:00:08]} 7. c3 {[%emt 0:00:03] next d4 is good for White.} Be7 {[%emt 0:11:48]} 8. d4 {[%emt 0:02:34] White is slightly better.} a6 {[%emt 0:01:12]} 9. Ba4 {[%emt 0:15:21]} (9. Bxc6 {simplifies} dxc6 10. Nbd2 exd4 11. cxd4 O-O 12. Qc2) 9... b5 {[%emt 0:04:13] Inhibits d5.} 10. dxe5 {[%emt 0:08:20]} (10. Bc2 $5 {[%cal Rd4d5]}) 10... Nxe4 {[%emt 0:00:32]} 11. Bb3 {[%emt 0:01:45]} Nc5 {[%emt 0:02:22]} 12. Bd5 {[%emt 0:00:04]} Bb7 {[%emt 0:06:23]} 13. Nbd2 {[%emt 0:01:04]} d6 {[%emt 0:12:07]} 14. Nb3 {[%emt 0:03:30] aiming for Re1.} O-O {[%emt 0:01:10]} (14... dxe5 $2 {[#]} 15. Ng5 $1 {[%mdl 512]} Rf8 16. Qf3 $18) (14... Nxe5 $14 15. Nxc5 Nxf3+ 16. Bxf3 Bxf3 17. Qxf3 dxc5) 15. Bf4 $2 {[%emt 0:14:25] White is more active.} (15. Ba3 $16 {And now exd6 would win.} Nd7 16. exd6 (16. Bxd6 Rc8 $16)) 15... dxe5 {[%emt 0:03:05]} (15... Nxe5 {simplifies} 16. Bxb7 Nxb7 17. Nxe5 dxe5 18. Bxe5 Qxd1 19. Rfxd1 Rfd8) 16. Nxc5 {[%emt 0:00:33]} Bxc5 {[%emt 0:00:04]} 17. Nxe5 {[%emt 0:00:22]} Nxe5 {[%emt 0:02:56]} 18. Bxb7 {[%emt 0:00:16]} Ra7 {[%emt 0:01:08]} 19. Be4 {[%emt 0:06:32][%cal Bb7e4,Be4c2,Bc2b3][%mdl 32] Inhibits Nd3. This pair of bishops is nice.} (19. Qxd8 {simplifies} Rxd8 20. Be4 Ng6 21. Bxg6 hxg6 22. a4) 19... Ng6 {[%emt 0:00:19]} 20. Qh5 {[%emt 0:01:08]} Qb6 {[%emt 0:02:12]} 21. a4 {[%emt 0:03:22] [#] Hoping for a5.} Re7 {[%emt 0:00:36]} 22. a5 {[%emt 0:01:59]} Qa7 {[%emt 0:00:00]} 23. Bc2 $40 {[%emt 0:00:45][%cal Oa1d1][%mdl 128] White is up to no good.} Rfe8 {[%emt 0:00:35]} 24. Bg3 {[%emt 0:00:06]} Re6 {[%emt 0:05:27]} 25. Kh1 {[%emt 0:02:25]} Re2 {[%emt 0:01:26]} (25... Bd6 $11) 26. Bb3 $14 {[%emt 0:00:27]} Bxf2 $2 {[%emt 0:04:31][%mdl 8192] This costs Black the game.} (26... Rb2 $11 {and Black stays safe.} 27. Bd5 Rf8) 27. Qf3 $18 {[%emt 0:04:52]} Bxg3 {[%emt 0:02:10]} 28. Qxf7+ {[%emt 0:02:02]} Qxf7 {[%emt 0:00:04]} 29. Bxf7+ {[%emt 0:00:03]} Kh8 {[%emt 0:00:56] Strongly threatening ...Bc7.} 30. Bxe8 {[%emt 0:00:04]} ({Inferior is} 30. hxg3 Rc8 $11) 30... Rxe8 {[%emt 0:00:17]} 31. hxg3 {[%emt 0:00:04] KRR-KRN. White is clearly winning.} Rc8 {[%emt 0:01:38]} 32. Rae1 {[%emt 0:00:06] Prevents Ne5.} h5 {[%emt 0:00:19]} 33. Re6 {[%emt 0:00:22][%csl LRa6,LRg6]} Kh7 {[%emt 0:00:01]} 34. Rf5 {[%emt 0:00:12]} Kh6 {[%emt 0:00:58]} 35. Rxa6 {[%emt 0:00:10]} Rxc3 {[%emt 0:00:09]} 36. Rxb5 {[%emt 0:00:04] Weighted Error Value: White=0.26 (precise) /Black=0.51} 1-0